fUST/lending_fUST_20260117
["ID","MTS","AMOUNT","RATE_DAILY","PERIOD"]
[402291638,1768649482624,-500.0,0.00017534,3]
[402291639,1768649482633,-500.0,0.00017534,3]
[402291640,1768649482642,-500.0,0.00017534,3]
[402291641,1768649482653,-500.0,0.00017534,3]
[402291642,1768649482662,-953.59,0.00017534,3]
[402291643,1768649482672,-500.0,0.00017534,3]
[402291644,1768649482683,-500.0,0.00017534,3]
[402291645,1768649482693,-500.0,0.00017534,3]
[402291646,1768649482703,-1046.6,0.00017534,3]
[402291647,1768649482713,-2677.48,0.00017534,3]
[402291648,1768649482722,-500.0,0.00017534,3]
[402291649,1768649482732,-500.0,0.00017534,3]
[402291650,1768649482744,-722.98,0.00017534,3]
[402291651,1768649482754,-523.8,0.00017534,3]
[402291652,1768649482764,-500.0,0.00017534,3]
[402291653,1768649482776,-500.0,0.00017534,3]
[402291654,1768649482785,-500.0,0.00017534,3]
[402291655,1768649482795,-1864.45,0.00017534,3]
[402291656,1768649482804,-980.47,0.00017534,3]
[402291657,1768649482815,-638.34,0.00017534,3]
[402291658,1768649482825,-500.0,0.00017534,3]
[402291659,1768649482836,-692.94,0.00017534,3]
[402291660,1768649482845,-500.0,0.00017534,3]
[402291661,1768649482855,-500.0,0.00017534,3]
[402291662,1768649482865,-500.0,0.00017534,3]
[402291663,1768649482875,-822.95,0.00017534,3]
[402291664,1768649482885,-500.0,0.00017534,3]
[402291665,1768649482895,-500.0,0.00017534,3]
[402291666,1768649482904,-1239.92,0.00017534,3]
[402291667,1768649482914,-515.79211625,0.00017534,3]
[402291668,1768649482924,-500.0,0.00017534,3]
[402291669,1768649482934,-500.0,0.00017534,3]
[402291670,1768649482944,-1628.03,0.00017534,3]
[402291671,1768649482954,-500.0,0.00017534,3]
[402291672,1768649482964,-604.11,0.00017534,3]
[402291673,1768649482974,-500.0,0.00017534,3]
[402291674,1768649482983,-772.16,0.00017534,3]
[402291675,1768649482992,-645.09,0.00017534,3]
[402291676,1768649483002,-500.0,0.00017534,3]
[402291677,1768649483011,-500.0,0.00017534,3]
[402291678,1768649483021,-2039.45,0.00017534,3]
[402291679,1768649483030,-500.0,0.00017534,3]
[402291680,1768649483040,-500.0,0.00017534,3]
[402291681,1768649483050,-500.0,0.00017534,3]
[402291682,1768649483059,-500.0,0.00017534,3]
[402291683,1768649483068,-500.0,0.00017534,3]
[402291684,1768649483078,-782.18,0.00017534,3]
[402291685,1768649483088,-693.9,0.00017534,3]
[402291686,1768649483097,-500.0,0.00017534,3]
[402291687,1768649483107,-508.96,0.00017534,3]
[402291688,1768649483116,-875.55,0.00017534,3]
[402291689,1768649483126,-500.0,0.00017534,3]
[402291690,1768649483135,-500.0,0.00017534,3]
[402291691,1768649483145,-227.93902115,0.00017534,3]
[402291692,1768649483154,-500.0,0.00017534,3]
[402291693,1768649483164,-1112.08,0.00017534,3]
[402291694,1768649483173,-1075.34,0.00017534,3]
[402291695,1768649483183,-1330.27,0.00017534,3]
[402291696,1768649483192,-500.0,0.00017534,3]
[402291697,1768649483202,-500.0,0.00017534,3]
[402291698,1768649483212,-500.0,0.00017534,3]
[402291699,1768649483223,-500.0,0.00017534,3]
[402291700,1768649483233,-784.27,0.00017534,3]
[402291701,1768649483242,-500.0,0.00017534,3]
[402291702,1768649483251,-1439.17,0.00017534,3]
[402291703,1768649483260,-785.13,0.00017534,3]
[402291704,1768649483270,-1777.27,0.00017534,3]
[402291705,1768649483280,-508.15,0.00017534,3]
[402291706,1768649483290,-578.09,0.00017534,3]
[402291707,1768649483300,-500.0,0.00017534,3]
[402291708,1768649483311,-500.0,0.00017534,3]
[402291709,1768649483321,-976.59,0.00017534,3]
[402291710,1768649483331,-2433.28,0.00017534,3]
[402291711,1768649483340,-500.0,0.00017534,3]
[402291712,1768649483350,-506.89,0.00017534,3]
[402291713,1768649483360,-500.0,0.00017534,3]
[402291714,1768649483369,-564.35,0.00017534,3]
[402291715,1768649483378,-500.0,0.00017534,3]
[402291716,1768649483388,-659.07,0.00017534,3]
[402291717,1768649483397,-562.57,0.00017534,3]
[402291718,1768649483406,-1186.93,0.00017534,3]
[402291719,1768649483417,-556.93843661,0.00017534,3]
[402291720,1768649483427,-1786.2,0.00017534,3]
[402291721,1768649483437,-500.0,0.00017534,3]
[402291722,1768649483447,-643.39,0.00017534,3]
[402291723,1768649483456,-500.0,0.00017534,3]
[402291724,1768649483466,-612.1,0.00017534,3]
[402291725,1768649483477,-1089.71,0.00017534,3]
[402291726,1768649483488,-500.0,0.00017534,3]
[402291727,1768649483498,-500.0,0.00017534,3]
[402291728,1768649483507,-998.12,0.00017534,3]
[402291729,1768649483517,-1659.97,0.00017534,3]
[402291730,1768649483526,-500.0,0.00017534,3]
[402291731,1768649483536,-1699.56,0.00017534,3]
[402291732,1768649483546,-974.97,0.00017534,3]
[402291733,1768649483555,-733.19,0.00017534,3]
[402291734,1768649483565,-500.0,0.00017534,3]
[402291735,1768649483573,-1287.57,0.00017534,3]
[402291736,1768649483582,-1613.1,0.00017534,3]
[402291737,1768649483591,-1429.84,0.00017534,3]
[402291738,1768649483600,-1106.34,0.00017534,3]
[402291739,1768649483610,-500.0,0.00017534,3]
[402291740,1768649483620,-500.0,0.00017534,3]
[402291741,1768649483630,-1141.58,0.00017534,3]
[402291742,1768649483641,-500.0,0.00017534,3]
[402291743,1768649483652,-500.0,0.00017534,3]
[402291744,1768649483662,-1806.23,0.00017534,3]
[402291745,1768649483672,-500.0,0.00017534,3]
[402291746,1768649483683,-972.38,0.00017534,3]
[402291747,1768649483694,-2006.9,0.00017534,3]
[402291748,1768649483705,-1072.76,0.00017534,3]
[402291749,1768649483714,-500.0,0.00017534,3]
[402291750,1768649483723,-500.0,0.00017534,3]
[402291751,1768649483733,-1530.01,0.00017534,3]
[402291752,1768649483743,-500.0,0.00017534,3]
[402291753,1768649483753,-999.91,0.00017534,3]
[402291754,1768649483762,-500.0,0.00017534,3]
[402291755,1768649483775,-500.0,0.00017534,3]
[402291756,1768649483787,-920.91,0.00017534,3]
[402291757,1768649483796,-500.0,0.00017534,3]
[402291758,1768649483806,-500.0,0.00017534,3]
[402291759,1768649483815,-849.02,0.00017534,3]
[402291760,1768649483824,-500.0,0.00017534,3]
[402291761,1768649483834,-500.0,0.00017534,3]
[402291762,1768649483843,-500.0,0.00017534,3]
[402291763,1768649483854,-500.0,0.00017534,3]
[402291764,1768649483864,-500.0,0.00017534,3]
[402291765,1768649483874,-530.71,0.00017534,3]
[402291766,1768649483884,-500.0,0.00017534,3]
[402291767,1768649483893,-863.5,0.00017534,3]
[402291768,1768649483903,-1016.59,0.00017534,3]
[402291769,1768649483912,-570.88,0.00017534,3]
[402291770,1768649483922,-500.0,0.00017534,3]
[402291771,1768649483931,-500.0,0.00017534,3]
[402291772,1768649483941,-1506.77,0.00017534,3]
[402291773,1768649483951,-500.0,0.00017534,3]
[402291774,1768649483960,-1003.52,0.00017534,3]
[402291775,1768649483970,-500.0,0.00017534,3]
[402291776,1768649483981,-500.0,0.00017534,3]
[402291777,1768649483992,-2338.27,0.00017534,3]
[402291778,1768649484001,-974.74,0.00017534,3]
[402291779,1768649484011,-500.0,0.00017534,3]
[402291780,1768649484021,-500.0,0.00017534,3]
[402291781,1768649484033,-617.9,0.00017534,3]
[402291782,1768649484043,-500.0,0.00017534,3]
[402291783,1768649484053,-741.6,0.00017534,3]
[402291784,1768649484063,-565.41,0.00017534,3]
[402291785,1768649484074,-871.62,0.00017534,3]
[402291786,1768649484083,-2020.66,0.00017534,3]
[402291787,1768649484094,-1482.88,0.00017534,3]
[402291788,1768649484104,-939.95,0.00017534,3]
[402291789,1768649484114,-500.0,0.00017534,3]
[402291790,1768649484125,-500.0,0.00017534,3]
[402291791,1768649484135,-500.0,0.00017534,3]
[402291792,1768649484144,-500.0,0.00017534,3]
[402291793,1768649484154,-680.35,0.00017534,3]
[402291794,1768649484165,-500.0,0.00017534,2]
[402291795,1768649484175,-500.0,0.00017534,3]
[402291796,1768649484184,-1254.59,0.00017534,3]
[402291797,1768649484195,-500.0,0.00017534,3]
[402291798,1768649484205,-500.0,0.00017534,3]
[402291799,1768649484215,-500.0,0.00017534,3]
[402291800,1768649484225,-500.0,0.00017534,2]
[402291801,1768649484235,-500.0,0.00017534,2]
[402291802,1768649484244,-269.96129392,0.00017561,7]
[402291803,1768649484255,-558.56952716,0.00017591,31]
[402291804,1768649484264,-412.13348321,0.00017591,31]
[402291805,1768649484275,-2138.33066815,0.000176,2]
[402291806,1768649484284,-1254.681613,0.00017603,7]
[402291807,1768649484294,-252.4,0.00017647,2]
[402291808,1768649484303,-1041.66666667,0.00017687,2]
[402291809,1768649484313,-160.0,0.00017688,2]
[402291810,1768649484322,-3519.071108,0.00017694,7]
[402291811,1768649484331,-311.858,0.000177,2]
[402291812,1768649484340,-601.4293559,0.00017704,12]
[402291813,1768649484349,-239.92258785,0.00017781,7]
[402291814,1768649484359,-16035.53261385,0.000178,3]
[402291815,1768649484368,-500.0,0.00017808,3]
[402291816,1768649484378,-500.0,0.00017808,3]
[402291817,1768649484387,-500.0,0.00017808,3]
[402291818,1768649484397,-499.44798613,0.00017808,3]
[402291819,1768649484407,-500.0,0.00017808,3]
[402291820,1768649484416,-500.0,0.00017808,3]
[402291821,1768649484425,-1541.12,0.00017808,3]
[402291822,1768649484434,-691.16,0.00017808,3]
[402291823,1768649484443,-500.0,0.00017808,3]
[402291824,1768649484452,-621.29598782,0.00017808,3]
[402291825,1768649484462,-500.0,0.00017808,3]
[402291826,1768649484473,-500.0,0.00017808,3]
[402291827,1768649484482,-500.0,0.00017808,3]
[402291828,1768649484492,-500.0,0.00017808,3]
[402291829,1768649484502,-500.0,0.00017808,3]
[402291830,1768649484511,-500.0,0.00017808,3]
[402291831,1768649484521,-557.26,0.00017808,3]
[402291832,1768649484531,-904.31,0.00017808,3]
[402291833,1768649484540,-500.0,0.00017808,3]
[402291834,1768649484549,-500.0,0.00017808,3]
[402291835,1768649484559,-524.86,0.00017808,3]
[402291836,1768649484568,-544.01,0.00017808,3]
[402291837,1768649484578,-784.71,0.00017808,3]
[402291838,1768649484588,-953.58,0.00017808,3]
[402291839,1768649484597,-510.56,0.00017808,3]
[402291840,1768649484607,-1016.13,0.00017808,3]
[402291841,1768649484807,-359.73801273,0.00017808,3]
[402291842,1768649484818,-587.21,0.00017808,3]
[402291843,1768649484829,-785.77,0.00017808,3]
[402291844,1768649484840,-500.0,0.00017808,3]
[402291845,1768649484852,-1289.75,0.00017808,3]
[402291846,1768649484861,-848.03,0.00017808,3]
[402291847,1768649484870,-500.0,0.00017808,3]
[402291848,1768649484879,-816.49,0.00017808,3]
[402291849,1768649484889,-1000.0,0.00017808,2]
[402291850,1768649484898,-500.0,0.00017808,3]
[402291851,1768649484908,-500.0,0.00017808,3]
[402291852,1768649484918,-500.0,0.00017808,3]
[402291853,1768649484927,-649.2,0.00017808,3]
[402291854,1768649484936,-500.0,0.00017808,3]
[402291855,1768649484946,-500.0,0.00017808,3]
[402291856,1768649484955,-500.0,0.00017808,3]
[402291857,1768649484965,-667.06,0.00017808,3]
[402291858,1768649484974,-500.0,0.00017808,3]
[402291859,1768649484984,-500.0,0.00017808,3]
[402291860,1768649484993,-1441.58,0.00017808,3]
[402291861,1768649485003,-500.0,0.00017808,3]
[402291862,1768649485014,-513.41,0.00017808,3]
[402291863,1768649485023,-500.0,0.00017808,3]
[402291864,1768649485032,-1507.14,0.00017808,3]
[402291865,1768649485042,-500.0,0.00017808,3]
[402291866,1768649485051,-500.0,0.00017808,3]
[402291867,1768649485061,-500.0,0.00017808,3]
[402291868,1768649485071,-500.0,0.00017808,3]
[402291869,1768649485080,-1074.96,0.00017808,3]
[402291870,1768649485090,-790.89,0.00017808,3]
[402291871,1768649485099,-500.0,0.00017808,3]
[402291872,1768649485108,-875.03,0.00017808,3]
[402291873,1768649485117,-500.0,0.00017808,3]
[402291874,1768649485127,-681.74,0.00017808,3]
[402291875,1768649485137,-713.54,0.00017808,3]
[402291876,1768649485147,-740.56,0.00017808,3]
[402291877,1768649485157,-512.63,0.00017808,3]
[402291878,1768649485166,-877.22,0.00017808,3]
[402291879,1768649485176,-558.65271499,0.00017808,3]
[402291880,1768649485186,-1834.58,0.00017808,3]
[402291881,1768649485196,-500.0,0.00017808,3]
[402291882,1768649485205,-500.0,0.00017808,3]
[402291883,1768649485215,-500.0,0.00017808,3]
[402291884,1768649485224,-500.0,0.00017808,3]
[402291885,1768649485234,-500.0,0.00017808,3]
[402291886,1768649485244,-1262.64,0.00017808,3]
[402291887,1768649485254,-500.0,0.00017808,3]
[402291888,1768649485264,-500.0,0.00017808,3]
[402291889,1768649485273,-814.83,0.00017808,3]
[402291890,1768649485283,-629.63699544,0.00017808,3]
[402291891,1768649485292,-500.0,0.00017808,3]
[402291892,1768649485303,-791.33,0.00017808,3]
[402291893,1768649485312,-510.46768292,0.00017808,3]
[402291894,1768649485322,-584.24,0.00017808,3]
[402291895,1768649485332,-904.51,0.00017808,3]
[402291896,1768649485341,-500.0,0.00017808,3]
[402291897,1768649485351,-500.0,0.00017808,3]
[402291898,1768649485361,-995.62,0.00017808,3]
[402291899,1768649485371,-1454.21,0.00017808,3]
[402291900,1768649485380,-558.41,0.00017808,3]
[402291901,1768649485389,-500.0,0.00017808,3]
[402291902,1768649485399,-500.0,0.00017808,3]
[402291903,1768649485408,-500.0,0.00017808,3]
[402291904,1768649485417,-500.0,0.00017808,3]
[402291905,1768649485426,-500.0,0.00017808,2]
[402291906,1768649485436,-500.0,0.00017808,3]
[402291907,1768649485445,-500.0,0.00017808,3]
[402291908,1768649485454,-500.0,0.00017808,3]
[402291909,1768649485464,-500.0,0.00017808,3]
[402291910,1768649485474,-500.0,0.00017808,3]
[402291911,1768649485483,-617.55085621,0.00017808,3]
[402291912,1768649485494,-518.28,0.00017808,3]
[402291913,1768649485504,-450.62151726,0.00017808,3]
[402291914,1768649485514,-648.04,0.00017808,3]
[402291915,1768649485525,-1286.45,0.00017808,3]
[402291916,1768649485536,-1134.77,0.00017808,3]
[402291917,1768649485546,-500.0,0.00017808,3]
[402291918,1768649485556,-360.7676184,0.00017808,3]
[402291919,1768649485566,-500.0,0.00017808,3]
[402291920,1768649485576,-500.0,0.00017808,3]
[402291921,1768649485586,-500.0,0.00017808,3]
[402291922,1768649485595,-500.0,0.00017808,3]
[402291923,1768649485604,-500.0,0.00017808,3]
[402291924,1768649485614,-500.0,0.00017808,3]
[402291925,1768649485623,-1305.23,0.00017808,3]
[402291926,1768649485632,-500.0,0.00017808,3]
[402291927,1768649485641,-593.05,0.00017808,3]
[402291928,1768649485651,-500.0,0.00017808,3]
[402291929,1768649485660,-895.32,0.00017808,3]
[402291930,1768649485670,-556.6,0.00017808,3]
[402291931,1768649485679,-500.0,0.00017808,3]
[402291932,1768649485687,-500.0,0.00017808,3]
[402291933,1768649485697,-592.12,0.00017808,3]
[402291934,1768649485705,-1170.72,0.00017808,3]
[402291935,1768649485714,-500.0,0.00017808,3]
[402291936,1768649485724,-500.0,0.00017808,3]
[402291937,1768649485733,-500.0,0.00017808,3]
[402291938,1768649485742,-500.0,0.00017808,3]
[402291939,1768649485752,-500.0,0.00017808,3]
[402291940,1768649485762,-500.0,0.00017808,3]
[402291941,1768649485773,-501.58,0.00017808,3]
[402291942,1768649485783,-797.95,0.00017808,3]
[402291943,1768649485794,-902.93,0.00017808,3]
[402291944,1768649485803,-1478.48,0.00017808,3]
[402291945,1768649485812,-931.1,0.00017808,3]
[402291946,1768649485822,-156.77330136,0.00017808,2]
[402291947,1768649485832,-500.0,0.00017808,3]
[402291948,1768649485842,-500.0,0.00017808,3]
[402291949,1768649485853,-500.0,0.00017808,3]
[402291950,1768649485863,-500.0,0.00017808,3]
[402291951,1768649485872,-586.69345544,0.00017808,3]
[402291952,1768649485883,-500.0,0.00017808,3]
[402291953,1768649485893,-500.0,0.00017808,3]
[402291954,1768649485902,-887.98,0.00017808,3]
[402291955,1768649485912,-500.0,0.00017808,3]
[402291956,1768649485922,-842.12,0.00017808,3]
[402291957,1768649485931,-500.0,0.00017808,3]
[402291958,1768649485941,-500.0,0.00017808,3]
[402291959,1768649485951,-1511.79,0.00017808,3]
[402291960,1768649485961,-500.0,0.00017808,3]
[402291961,1768649485970,-500.0,0.00017808,3]
[402291962,1768649485979,-500.0,0.00017808,3]
[402291963,1768649485988,-500.0,0.00017808,3]
[402291964,1768649485997,-745.23,0.00017808,3]
[402291965,1768649486007,-500.0,0.00017808,3]
[402291966,1768649486017,-500.0,0.00017808,3]
[402291967,1768649486026,-1200.0,0.00017808,2]
[402291968,1768649486036,-500.0,0.00017808,3]
[402291969,1768649486045,-500.0,0.00017808,3]
[402291970,1768649486054,-500.0,0.00017808,3]
[402291971,1768649486064,-500.0,0.00017808,3]
[402291972,1768649486073,-500.0,0.00017808,3]
[402291973,1768649486083,-697.62,0.00017808,3]
[402291974,1768649486092,-500.0,0.00017808,3]
[402291975,1768649486102,-500.0,0.00017808,3]
[402291976,1768649486112,-618.2,0.00017808,3]
[402291977,1768649486121,-1774.68,0.00017808,3]
[402291978,1768649486130,-500.0,0.00017808,3]
[402291979,1768649486139,-942.63,0.00017808,3]
[402291980,1768649486149,-500.0,0.00017808,3]
[402291981,1768649486158,-251.11469402,0.00017808,3]
[402291982,1768649486169,-500.0,0.00017808,3]
[402291983,1768649486178,-500.0,0.00017808,3]
[402291984,1768649486188,-1586.94,0.00017808,3]
[402291985,1768649486197,-500.0,0.00017808,3]
[402291986,1768649486207,-500.0,0.00017808,3]
[402291987,1768649486216,-500.0,0.00017808,3]
[402291988,1768649486226,-540.84,0.00017808,3]
[402291989,1768649486236,-1084.84,0.00017808,3]
[402291990,1768649486246,-500.0,0.00017808,3]
[402291991,1768649486255,-693.7,0.00017808,3]
[402291992,1768649486265,-1859.94,0.00017808,3]
[402291993,1768649486275,-500.0,0.00017808,3]
[402291994,1768649486284,-500.0,0.00017808,3]
[402291995,1768649486294,-500.0,0.00017808,3]
[402291996,1768649486303,-500.0,0.00017808,3]
[402291997,1768649486312,-547.09236024,0.00017808,3]
[402291998,1768649486322,-500.0,0.00017808,3]
[402291999,1768649486331,-500.0,0.00017808,3]
[402292000,1768649486340,-500.0,0.00017808,3]
[402292001,1768649486350,-374.98,0.00017808,3]
[402292002,1768649486360,-500.0,0.00017808,3]
[402292003,1768649486369,-782.75,0.00017808,3]
[402292004,1768649486378,-277.37336634,0.00017808,3]
[402292005,1768649486388,-752.05,0.00017808,3]
[402292006,1768649486397,-500.0,0.00017808,3]
[402292007,1768649486407,-500.0,0.00017808,3]
[402292008,1768649486416,-775.14,0.00017808,3]
[402292009,1768649486426,-2140.55,0.00017808,3]
[402292010,1768649486435,-500.0,0.00017808,3]
[402292011,1768649486444,-1600.91,0.00017808,3]
[402292012,1768649486454,-569.38190569,0.00017808,3]
[402292013,1768649486464,-500.0,0.00017808,3]
[402292014,1768649486473,-500.0,0.00017808,3]
[402292015,1768649486483,-500.0,0.00017808,3]
[402292016,1768649486493,-500.0,0.00017808,3]
[402292017,1768649486502,-500.0,0.00017808,3]
[402292018,1768649486511,-500.0,0.00017808,3]
[402292019,1768649486521,-500.0,0.00017808,3]
[402292020,1768649486530,-500.0,0.00017808,3]
[402292021,1768649486539,-540.2,0.00017808,3]
[402292022,1768649486548,-533.87958075,0.00017808,3]
[402292023,1768649486558,-500.0,0.00017808,3]
[402292024,1768649486567,-691.55,0.00017808,3]
[402292025,1768649486577,-2007.96,0.00017808,3]
[402292026,1768649486586,-835.27,0.00017808,3]
[402292027,1768649486596,-1472.9,0.00017808,3]
[402292028,1768649486606,-1210.81,0.00017808,3]
[402292029,1768649486615,-500.0,0.00017808,3]
[402292030,1768649486624,-604.57,0.00017808,3]
[402292031,1768649486633,-500.0,0.00017808,3]
[402292032,1768649486642,-500.0,0.00017808,3]
[402292033,1768649486652,-1776.82,0.00017808,3]
[402292034,1768649486663,-500.0,0.00017808,3]
[402292035,1768649486672,-500.0,0.00017808,3]
[402292036,1768649486682,-582.22,0.00017808,3]
[402292037,1768649486691,-1240.14,0.00017808,3]
[402292038,1768649486700,-500.0,0.00017808,3]
[402292039,1768649486710,-884.93,0.00017808,3]
[402292040,1768649486719,-500.0,0.00017808,3]
[402292041,1768649486728,-628.44,0.00017808,3]
[402292042,1768649486737,-500.0,0.00017808,3]
[402292043,1768649486747,-529.79,0.00017808,3]
[402292044,1768649486757,-366.90242144,0.00017808,3]
[402292045,1768649486766,-500.0,0.00017808,3]
[402292046,1768649486780,-500.0,0.00017808,3]
[402292047,1768649486789,-500.0,0.00017808,3]
[402292048,1768649486799,-500.0,0.00017808,3]
[402292049,1768649486808,-500.0,0.00017808,3]
[402292050,1768649486818,-500.0,0.00017808,3]
[402292051,1768649486827,-511.03,0.00017808,3]
[402292052,1768649486837,-1076.17,0.00017808,3]
[402292053,1768649486849,-500.0,0.00017808,3]
[402292054,1768649486859,-1251.31,0.00017808,3]
[402292055,1768649486868,-993.75,0.00017808,3]
[402292056,1768649486878,-500.0,0.00017808,3]
[402292057,1768649486887,-592.17,0.00017808,3]
[402292058,1768649486896,-500.0,0.00017808,3]
[402292059,1768649486905,-1040.39,0.00017808,3]
[402292060,1768649486914,-1158.63,0.00017808,3]
[402292061,1768649486924,-500.0,0.00017808,3]
[402292062,1768649486933,-1446.98,0.00017808,3]
[402292063,1768649486942,-500.0,0.00017808,3]
[402292064,1768649486952,-553.77,0.00017808,3]
[402292065,1768649486961,-1160.93,0.00017808,3]
[402292066,1768649486970,-789.43,0.00017808,3]
[402292067,1768649486979,-596.89198935,0.00017808,3]
[402292068,1768649486988,-781.61,0.00017808,3]
[402292069,1768649486997,-677.45,0.00017808,3]
[402292070,1768649487006,-1417.89,0.00017808,3]
[402292071,1768649487015,-500.0,0.00017808,3]
[402292072,1768649487024,-1042.85,0.00017808,3]
[402292073,1768649487033,-509.58,0.00017808,3]
[402292074,1768649487042,-882.89,0.00017808,3]
[402292075,1768649487052,-1329.23,0.00017808,3]
[402292076,1768649487061,-784.38,0.00017808,3]
[402292077,1768649487070,-952.33,0.00017808,3]
[402292078,1768649487079,-500.0,0.00017808,3]
[402292079,1768649487088,-936.94,0.00017808,3]
[402292080,1768649487097,-500.0,0.00017808,3]
[402292081,1768649487106,-500.0,0.00017808,3]
[402292082,1768649487115,-1708.14,0.00017808,3]
[402292083,1768649487125,-982.82,0.00017808,3]
[402292084,1768649487135,-500.0,0.00017808,3]
[402292085,1768649487145,-647.1,0.00017808,3]
[402292086,1768649487154,-593.22,0.00017808,3]
[402292087,1768649487163,-500.0,0.00017808,3]
[402292088,1768649487172,-550.51,0.00017808,3]
[402292089,1768649487181,-700.82,0.00017808,3]
[402292090,1768649487191,-500.0,0.00017808,3]
[402292091,1768649487200,-500.0,0.00017808,3]
[402292092,1768649487210,-500.0,0.00017808,3]
[402292093,1768649487219,-500.0,0.00017808,3]
[402292094,1768649487228,-500.0,0.00017808,3]
[402292095,1768649487239,-500.0,0.00017808,3]
[402292096,1768649487248,-500.0,0.00017808,3]
[402292097,1768649487257,-500.0,0.00017808,3]
[402292098,1768649487266,-500.0,0.00017808,3]
[402292099,1768649487275,-500.0,0.00017808,3]
[402292100,1768649487284,-500.0,0.00017808,3]
[402292101,1768649487294,-1436.34,0.00017808,3]
[402292102,1768649487304,-497.71228405,0.00017808,3]
[402292103,1768649487316,-479.08,0.00017808,3]
[402292104,1768649487325,-500.0,0.00017808,3]
[402292105,1768649487334,-588.13,0.00017808,3]
[402292106,1768649487344,-1686.51,0.00017808,3]
[402292107,1768649487353,-500.0,0.00017808,3]
[402292108,1768649487362,-500.0,0.00017808,3]
[402292109,1768649487371,-1458.01,0.00017808,3]
[402292110,1768649487380,-1003.45,0.00017808,3]
[402292111,1768649487389,-500.0,0.00017808,3]
[402292112,1768649487399,-2354.26,0.00017808,3]
[402292113,1768649487408,-500.0,0.00017808,3]
[402292114,1768649487417,-500.0,0.00017808,3]
[402292115,1768649487426,-1932.31,0.00017808,3]
[402292116,1768649487435,-1910.88,0.00017808,3]
[402292117,1768649487444,-904.86,0.00017808,3]
[402292118,1768649487453,-500.0,0.00017808,3]
[402292119,1768649487461,-742.45,0.00017808,3]
[402292120,1768649487471,-1293.83,0.00017808,3]
[402292121,1768649487480,-500.0,0.00017808,3]
[402292122,1768649487490,-501.96,0.00017808,3]
[402292123,1768649487499,-500.0,0.00017808,3]
[402292124,1768649487510,-1515.25,0.00017808,3]
[402292125,1768649487520,-500.0,0.00017808,3]
[402292126,1768649487530,-765.96,0.00017808,3]
[402292127,1768649487539,-771.05,0.00017808,3]
[402292128,1768649487548,-500.0,0.00017808,3]
[402292129,1768649487558,-1376.88,0.00017808,3]
[402292130,1768649487567,-500.0,0.00017808,3]
[402292131,1768649487576,-500.0,0.00017808,3]
[402292132,1768649487585,-500.0,0.00017808,3]
[402292133,1768649487595,-523.35,0.00017808,3]
[402292134,1768649487604,-500.0,0.00017808,3]
[402292135,1768649487614,-500.0,0.00017808,3]
[402292136,1768649487624,-1132.82,0.00017808,3]
[402292137,1768649487633,-500.0,0.00017808,3]